bitfinex/quotes_ETHUSD_20240702
["timestamp","ask_amount","ask_price","bid_price","bid_amount"]
[1719931381848,1.80683793,3405.8,3405.6,0.67178867]
[1719931382065,1.80683793,3405.9,3405.6,0.67178867]
[1719931382461,1.50574441,3405.7,3405.6,0.67178867]
[1719931382656,1.50587111,3405.8,3405.6,0.67178867]
[1719931382870,1.43412449,3406.6,3406.2,0.67178867]
[1719931383061,1.80703475,3406.4,3406.2,0.67178867]
[1719931383282,1.43412449,3406.6,3406.4,0.67178867]
[1719931383485,3.16650853,3408.7,3406.6,0.67178867]
[1719931383486,1.07732982,3406.7,3406.6,0.67178867]
[1719931383803,1.07732982,3406.7,3406.5,6.9238]
[1719931383804,2.10855145,3407.8,3407.4,0.67178867]
[1719931383999,0.50824816,3407.7,3407.4,0.67178867]
[1719931384295,2.10855145,3408.2,3407.6,0.67178867]
[1719931384496,0.50819444,3408.1,3407.9,0.67178867]
[1719931384683,0.50819444,3408.0,3407.9,0.67178867]
[1719931384885,2.10855145,3408.3,3407.9,0.67178867]
[1719931385099,2.10855145,3408.5,3408.2,0.67178867]
[1719931385301,0.5081468,3408.4,3408.2,0.67178867]
[1719931385511,0.04186652,3408.7,3407.8,0.67178867]
[1719931385512,2.15041797,3408.7,3407.8,0.67178867]
[1719931385797,2.15041797,3408.7,3407.6,2.93461]
[1719931385798,2.10916352,3408.3,3407.6,0.67178867]
[1719931386001,0.04186652,3408.7,3407.6,0.67178867]
[1719931386002,1.50655313,3407.7,3407.6,0.67178867]
[1719931386176,1.50655313,3407.8,3407.6,0.67178867]
[1719931386376,2.53331593,3408.7,3407.6,0.67178867]
[1719931386377,1.50655313,3407.7,3407.6,0.67178867]
[1719931386590,2.10916352,3408.3,3407.4,0.67178867]
[1719931386811,0.04186652,3408.7,3407.4,0.67178867]
[1719931386812,1.50597687,3407.5,3407.4,0.67178867]
[1719931387103,0.04186652,3408.7,3407.4,0.67178867]
[1719931387104,1.50597687,3407.7,3407.4,0.67178867]
[1719931387313,2.53331593,3408.7,3407.2,0.67178867]
[1719931387314,0.50829588,3407.6,3407.2,0.67178867]
[1719931387463,2.10916352,3407.9,3407.2,0.67178867]
[1719931387464,1.50504541,3407.3,3407.2,0.67178867]
[1719931387663,2.49144941,3408.3,3407.2,0.67178867]
[1719931387664,1.50504541,3407.4,3407.2,0.67178867]
[1719931387895,1.50504541,3407.5,3407.2,0.67178867]
[1719931388098,1.50504541,3407.5,3407.4,0.67178867]
[1719931388307,2.10916352,3408.1,3407.4,0.67178867]
[1719931388469,2.10916352,3408.1,3407.2,0.67178867]
[1719931388470,0.50826633,3408.0,3407.2,0.67178867]
[1719931388666,1.50496999,3407.4,3407.2,0.67178867]
[1719931388965,1.50496999,3407.3,3406.7,0.67178867]
[1719931389197,6.06270382,3408.6,3406.7,0.67178867]
[1719931389198,1.50496999,3407.1,3406.7,0.67178867]
[1719931389405,1.50496999,3407.1,3406.0,7.2665]
[1719931389406,1.50496999,3407.0,3406.6,0.67178867]
[1719931389630,1.50496999,3406.8,3406.6,0.67178867]
[1719931389769,1.50496999,3406.8,3406.4,0.67178867]
[1719931389965,1.50496999,3406.7,3406.4,0.67178867]
[1719931390371,1.8057771,3407.0,3406.7,0.67178867]
[1719931390582,0.04186652,3407.6,3406.7,0.67178867]
[1719931390583,1.50482887,3406.9,3406.7,0.67178867]
[1719931390777,1.8057771,3407.1,3406.7,0.67178867]
[1719931390988,0.04186652,3407.6,3406.7,0.67178867]
[1719931390989,1.50496095,3407.0,3406.7,0.67178867]
[1719931391202,2.1488245,3407.6,3406.7,7.87578867]
[1719931391203,1.50496095,3406.8,3406.7,7.87578867]
[1719931391433,0.04186652,3407.6,3407.1,0.67178867]
[1719931391434,1.50533586,3407.2,3407.1,0.67178867]
[1719931391705,0.04186652,3407.6,3407.1,0.67178867]
[1719931391923,1.50533378,3407.3,3407.1,0.67178867]
[1719931392144,1.80640053,3407.3,3406.6,0.67178867]
[1719931392289,1.50518968,3406.9,3406.6,0.67178867]
[1719931392721,1.50518968,3406.8,3406.6,0.67178867]
[1719931393100,1.50518968,3406.9,3406.6,0.67178867]
[1719931393302,1.50518968,3407.0,3406.8,0.67178867]
[1719931393506,2.14933381,3407.6,3407.0,0.67178867]
[1719931393507,1.50518968,3407.1,3407.0,0.67178867]
[1719931394128,0.04186652,3407.6,3406.7,2.93537]
[1719931394129,1.50518968,3407.3,3407.2,0.67178867]
[1719931394655,0.04186652,3407.6,3407.2,1.03835639]
[1719931394794,0.04186652,3407.6,3407.5,0.67178867]
[1719931395194,1e-08,3407.6,3407.5,0.67178867]
[1719931395394,1.80648852,3408.0,3407.5,0.67178867]
[1719931395395,0.84585375,3408.0,3407.9,0.67178867]
[1719931395635,9.61146699,3409.0,3408.1,0.67178867]
[1719931395636,1.80648852,3408.5,3408.1,0.67178867]
[1719931395820,2.13426241,3408.4,3408.1,0.67178867]
[1719931396194,1.80648852,3408.5,3407.3,3.382]
[1719931396195,1.80648852,3408.5,3407.8,0.67178867]
[1719931396393,1.80648852,3408.3,3407.8,0.67178867]
[1719931396898,10.05532,3409.0,3407.8,0.67178867]
[1719931396899,1.80648852,3408.5,3407.8,0.67178867]
[1719931397101,1.80648852,3408.6,3408.1,0.67178867]
[1719931397298,3.94072156,3408.5,3408.1,0.67178867]
[1719931397522,1.80648852,3408.5,3408.1,0.67178867]
[1719931397826,1.80580524,3408.6,3408.1,0.67178867]
[1719931398132,2.1341819,3408.5,3408.1,0.67178867]
[1719931398327,1.80580524,3408.6,3408.1,0.67178867]
[1719931398628,1.80580524,3408.7,3408.1,0.67178867]
[1719931398836,8.90060382,3409.6,3407.7,2.93452]
[1719931398837,1.80580524,3408.8,3408.3,0.67178867]
[1719931399001,12.7248,3409.6,3407.6,0.631668]
[1719931399002,1.80580524,3408.9,3408.7,0.67178867]
[1719931399200,6.7919,3409.6,3408.7,0.67178867]
[1719931399201,1.80580524,3409.1,3408.7,0.67178867]
[1719931399396,5.69893884,3409.0,3408.5,0.67178867]
[1719931399596,1.75919536,3408.9,3408.4,0.67178867]
[1719931399822,1.75919536,3408.9,3408.6,0.67178867]
[1719931400029,1.75919536,3408.9,3408.0,3.382]
[1719931400030,1.75919536,3408.9,3408.4,0.67178867]
[1719931400240,1.75919536,3408.9,3408.0,0.67178867]
[1719931400241,2.13406896,3408.8,3408.0,0.67178867]
[1719931400537,3.5650006,3408.7,3408.1,0.67178867]
[1719931400700,1.80467484,3408.9,3408.1,0.67178867]
[1719931401022,5.69727588,3408.8,3408.3,0.67178867]
[1719931401220,9.7248,3409.6,3408.5,0.67178867]
[1719931401221,1.80467484,3409.0,3408.5,0.67178867]
[1719931401420,4.40035893,3408.9,3408.5,0.67178867]
[1719931401631,0.50810965,3408.8,3408.5,0.67178867]
[1719931401803,1.80467484,3409.0,3408.5,0.67178867]
[1719931402143,4.40039216,3408.9,3408.5,0.67178867]
[1719931402357,4.40039216,3408.9,3408.3,0.67178867]
[1719931402358,4.40049699,3408.8,3408.3,0.67178867]
[1719931402640,1.50325353,3408.4,3408.3,0.67178867]
[1719931402866,1.80467484,3408.8,3407.8,0.67178867]
[1719931402867,1.50325353,3408.5,3407.8,0.67178867]
[1719931403139,2.93326,3409.2,3408.3,0.67178867]
[1719931403140,1.50379218,3408.6,3408.3,0.67178867]
[1719931403542,1.80467484,3409.0,3408.3,0.67178867]
[1719931403543,1.50379218,3408.7,3408.3,0.67178867]
[1719931403843,1.50379218,3408.7,3408.5,0.67178867]
[1719931403844,1.50390141,3408.7,3408.5,0.67178867]
[1719931404059,1.50390141,3408.8,3408.5,0.67178867]
[1719931404400,2.10546198,3409.5,3408.5,0.67178867]
[1719931404401,1.50390141,3408.9,3408.5,0.67178867]
[1719931404923,1.50390141,3408.9,3408.7,0.67178867]
[1719931405110,1.50390141,3409.0,3408.7,0.67178867]
[1719931405312,6.7919,3409.6,3408.7,0.67178867]
[1719931405313,1.50390141,3409.1,3408.7,0.67178867]
[1719931405516,3.26278682,3409.0,3408.7,0.67178867]
[1719931405712,1.50390141,3409.1,3408.7,0.67178867]
[1719931405924,1.75858755,3409.0,3408.7,0.67178867]
[1719931406125,1.50390141,3409.1,3408.7,0.67178867]
[1719931406441,1.80468169,3409.4,3408.7,0.67178867]
[1719931406442,1.50390141,3409.2,3408.7,0.67178867]
[1719931406603,6.8377,3409.0,3407.8,0.67178867]
[1719931406810,1.50390141,3408.6,3407.8,0.67178867]
[1719931407034,1.50305731,3408.4,3407.8,0.67178867]
[1719931407225,5.39653042,3408.3,3407.8,0.67178867]
[1719931407442,1.50338442,3408.3,3407.8,0.67178867]
[1719931407642,1.50338442,3408.4,3407.8,0.67178867]
[1719931407876,1.50338442,3408.6,3408.3,0.67178867]
[1719931408054,2.93,3409.3,3408.3,0.67178867]
[1719931408055,1.50338442,3408.7,3408.3,0.67178867]
[1719931408277,1.50338442,3408.8,3408.3,0.67178867]
[1719931408664,1.50338442,3408.9,3408.3,0.67178867]
[1719931409008,2.93,3409.3,3408.6,0.67178867]
[1719931409009,1.50338442,3409.1,3408.6,0.67178867]
[1719931409293,1.50338442,3409.1,3407.7,7.3676]
[1719931409294,2.93364,3408.8,3407.2,0.29670855]
[1719931409497,1.50338442,3408.5,3407.6,0.67178867]
[1719931409796,1.50338442,3408.3,3407.4,0.67178867]
[1719931410005,1.50338442,3408.3,3406.6,3.36075187]
[1719931410006,1.50338442,3408.3,3407.2,0.67178867]
[1719931410007,1.50328801,3408.0,3407.2,0.67178867]
[1719931410291,6.82808607,3408.2,3406.9,0.67178867]
[1719931410292,1.75944193,3407.9,3406.9,0.67178867]
[1719931410446,1.50334663,3407.7,3406.9,0.67178867]
[1719931410653,1.50334663,3407.8,3406.9,0.67178867]
[1719931411054,1.50334663,3407.7,3406.9,0.67178867]
[1719931411261,1.50334663,3407.8,3406.9,0.67178867]
[1719931411564,1.50334663,3407.8,3407.1,0.67178867]
[1719931411747,1.50334663,3407.9,3407.1,0.67178867]
[1719931412278,8.68081596,3408.2,3407.3,0.67178867]
[1719931412279,0.50824803,3407.8,3407.3,0.67178867]
[1719931412479,0.50826061,3407.7,3407.3,0.67178867]
[1719931412674,1.50334663,3407.9,3407.3,0.67178867]
[1719931412884,0.50824855,3407.8,3407.3,0.67178867]
[1719931413131,6.8768,3408.2,3407.3,0.67178867]
[1719931413363,1.50319125,3407.9,3407.3,0.67178867]
[1719931413630,0.5082426,3407.8,3407.3,0.67178867]
[1719931413794,1.50319125,3408.0,3407.3,0.67178867]
[1719931413994,1.50319125,3408.0,3407.6,0.67178867]
[1719931413995,0.50822894,3407.9,3407.6,0.67178867]
[1719931414321,1.50319125,3408.3,3408.1,0.67178867]
[1719931414527,1.50319125,3408.3,3407.9,0.67178867]
[1719931414528,0.50815944,3408.2,3407.9,0.67178867]
[1719931414826,2.93337,3409.1,3408.1,0.67178867]
[1719931414827,1.50319125,3408.5,3408.1,0.67178867]
[1719931414973,1.50319125,3408.6,3408.1,0.67178867]
[1719931415174,1.50319125,3408.7,3408.1,0.67178867]
[1719931415369,2.01132841,3408.6,3408.1,0.67178867]
[1719931415622,0.50813716,3408.5,3408.1,0.67178867]
[1719931415917,1.50319125,3408.6,3408.1,0.67178867]
[1719931416116,2.93324,3409.2,3408.1,0.67178867]
[1719931416340,0.50812103,3408.5,3408.1,0.67178867]
[1719931416488,1.50264761,3408.7,3408.3,0.67178867]
[1719931416679,8.89100665,3409.3,3408.3,0.67178867]
[1719931416680,1.50264761,3408.8,3408.3,0.67178867]
[1719931416873,0.50809414,3408.7,3408.3,0.67178867]
[1719931417123,1.50264761,3408.8,3408.3,0.67178867]
[1719931417316,2.01074863,3408.7,3408.3,0.67178867]
[1719931417615,1.50264761,3408.7,3408.3,0.67178867]
[1719931417825,2.48500348,3409.7,3407.6,3.382]
[1719931417826,1.50264761,3408.9,3408.7,0.67178867]
[1719931418034,5.03370665,3409.5,3407.4,3.0]
[1719931418035,1.50264761,3409.0,3408.9,0.67178867]
[1719931418320,1.80317713,3409.4,3409.1,0.67178867]
[1719931418321,1.50264761,3409.4,3409.1,0.67178867]
[1719931418617,2.48500348,3410.3,3409.3,0.67178867]
[1719931418618,1.50264761,3409.6,3409.3,0.67178867]
[1719931418780,0.50797464,3409.5,3409.3,0.67178867]
[1719931418983,1.50264761,3409.6,3409.3,0.67178867]
[1719931419176,1.50264761,3409.6,3408.6,3.382]
[1719931419177,1.50264761,3409.7,3409.5,0.67178867]
[1719931419490,6.7998,3410.4,3409.5,0.67178867]
[1719931419815,1.50118835,3409.8,3409.5,0.67178867]
[1719931420024,1.50118835,3409.9,3409.5,0.67178867]
[1719931420192,0.50794945,3409.8,3409.5,0.67178867]
[1719931420391,1.50118835,3409.9,3409.5,0.67178867]
[1719931420718,1.50118835,3410.0,3409.5,0.67178867]
[1719931420933,0.50793593,3409.9,3409.5,0.67178867]
[1719931421072,1.50118835,3410.1,3409.5,0.67178867]
[1719931421273,1.50118835,3410.3,3409.5,0.67178867]
[1719931421587,0.5078923,3410.2,3409.5,0.67178867]
[1719931421805,1.50118835,3410.3,3409.5,0.67178867]
[1719931422018,7.4127,3410.9,3409.5,0.67178867]
[1719931422188,0.50788419,3410.2,3410.1,0.67178867]
[1719931422505,1.50007358,3410.7,3410.1,0.67178867]
[1719931422707,0.50785407,3410.6,3410.1,0.67178867]
[1719931422908,1.50007358,3410.8,3410.1,0.67178867]
[1719931423139,13.78951227,3411.4,3410.1,0.67178867]
[1719931423140,0.50782747,3410.7,3410.1,0.67178867]
[1719931423280,1.50007358,3411.0,3410.3,0.67178867]
[1719931423493,0.50781579,3410.9,3410.3,0.67178867]
[1719931423714,0.50781579,3410.8,3410.3,0.67178867]
[1719931423904,1.50007358,3411.1,3410.3,0.67178867]
[1719931423905,0.50781579,3411.0,3410.3,0.67178867]
[1719931424222,0.50781579,3410.9,3410.3,0.67178867]
[1719931424526,4.43007358,3411.4,3410.5,0.67178867]
[1719931424722,4.105355,3411.9,3410.7,0.67178867]
[1719931424723,0.50777358,3411.3,3410.7,0.67178867]
[1719931425020,10.40601,3412.0,3410.7,0.67178867]
[1719931425221,0.50772518,3411.2,3410.7,0.67178867]
[1719931425394,1.49954607,3411.7,3410.7,0.67178867]
[1719931425593,2.64032682,3411.6,3410.7,0.67178867]
[1719931425789,0.5077535,3411.5,3411.1,0.67178867]
[1719931426015,1.49954607,3412.0,3411.1,0.67178867]
[1719931426228,9.19435529,3412.3,3411.1,0.67178867]
[1719931426229,0.50768745,3411.9,3411.1,0.67178867]
[1719931426415,7.3949,3412.3,3411.1,0.67178867]
[1719931426597,7.3949,3412.3,3411.3,0.67178867]
[1719931426598,0.50765224,3412.2,3411.3,0.67178867]
[1719931426798,0.50765224,3412.1,3411.3,0.67178867]
[1719931426996,7.3949,3412.3,3411.3,0.67178867]
[1719931427216,0.50764232,3412.2,3411.3,0.67178867]
[1719931427417,7.3949,3412.3,3411.3,0.67178867]
[1719931427623,0.50764606,3412.2,3411.3,0.67178867]
[1719931427925,2.93,3412.4,3411.3,0.67178867]
[1719931428142,0.50764116,3412.3,3411.3,0.67178867]
[1719931428296,2.93,3412.4,3411.5,0.67178867]
[1719931429231,2.93,3412.4,3411.7,0.67178867]
[1719931429730,2.93,3412.4,3410.6,1.0]
[1719931429731,3.095,3411.1,3410.6,1.0]
[1719931430116,3.19089594,3411.0,3410.6,1.0]
[1719931430321,2.64089594,3410.9,3410.6,1.0]
[1719931430534,2.64089594,3410.9,3409.0,3.382]
[1719931430535,0.294,3410.4,3409.0,0.67178867]
[1719931430842,0.294,3410.4,3408.8,1.0]
[1719931430843,2.93248,3410.1,3408.8,1.0]
[1719931431060,2.93245,3410.2,3409.0,0.67178867]
[1719931431330,0.55,3410.1,3409.0,0.67178867]
[1719931431837,2.93218,3410.5,3409.0,0.67178867]
[1719931431838,0.55,3410.4,3409.0,0.67178867]
[1719931432166,0.55,3410.4,3409.1,3.60510867]
[1719931432298,0.55,3410.6,3409.1,0.67178867]
[1719931432494,3.48203,3410.6,3409.1,0.67178867]
[1719931432793,2.93215,3410.5,3409.3,0.67178867]
[1719931432993,0.55,3410.6,3409.3,0.67178867]
[1719931432994,0.55,3410.6,3409.5,0.67178867]
[1719931433337,0.51545227,3411.2,3410.1,0.67178867]
[1719931433634,2.93169,3411.0,3410.1,0.67178867]
[1719931434394,6.44697227,3411.2,3409.4,0.67178867]
[1719931434395,3.51545227,3411.2,3409.4,0.67178867]
[1719931434601,3.51545227,3411.2,3409.3,10.6796]
[1719931434602,2.93196,3410.7,3409.8,0.67178867]
[1719931434823,2.93196,3410.7,3409.6,0.67178867]
[1719931435133,2.93196,3410.7,3409.7,0.67178867]
[1719931437038,2.93185,3410.9,3409.7,0.67178867]
[1719931437235,2.932,3410.7,3409.7,0.67178867]
[1719931437914,0.55,3410.8,3409.7,0.67178867]
[1719931438236,0.55,3410.8,3410.0,0.67178867]
[1719931438451,3.48183,3410.9,3410.0,0.67178867]
[1719931439534,2.93256,3410.0,3409.3,3.382]
[1719931439735,2.93271,3409.9,3409.0,0.67178867]
[1719931440053,3.645,3410.3,3408.6,0.67178867]
[1719931440257,2.93266,3409.9,3408.9,0.67178867]
[1719931440456,2.93283,3409.7,3408.7,0.67178867]
[1719931440655,0.55,3409.6,3408.7,0.67178867]
[1719931440952,3.48291,3409.6,3408.7,0.67178867]
[1719931442125,2.93318,3409.3,3408.1,0.67178867]
[1719931442358,2.93318,3409.3,3407.6,6.8123]
[1719931442359,2.93316,3409.3,3408.5,0.67178867]
[1719931442661,3.48324,3409.2,3407.7,0.67178867]
[1719931442955,3.48326,3409.2,3408.0,0.67178867]
[1719931443157,2.93351,3408.9,3408.0,0.67178867]
[1719931443355,0.35,3408.8,3408.0,0.67178867]
[1719931445365,2.93341,3409.0,3408.0,0.67178867]
[1719931445530,1.05811457,3408.9,3408.0,0.67178867]
[1719931445732,0.55,3408.9,3408.0,0.67178867]
[1719931446046,0.55,3409.0,3408.2,0.67178867]
[1719931446252,0.55,3409.2,3408.2,0.67178867]
[1719931446438,0.50810745,3409.1,3408.2,0.67178867]
[1719931446760,4.43168791,3409.5,3408.5,0.67178867]
[1719931446974,5.64208139,3409.4,3408.5,0.67178867]
[1719931447130,0.50809257,3409.3,3408.5,0.67178867]
[1719931447326,3.0,3409.4,3408.5,0.67178867]
[1719931447327,0.50809257,3409.2,3408.5,0.67178867]
[1719931447568,0.50809257,3409.1,3408.5,0.67178867]
[1719931447728,0.50809257,3409.3,3408.5,0.67178867]
[1719931448060,0.50809257,3409.2,3408.5,0.67178867]
[1719931448256,7.43160791,3409.6,3408.5,0.67178867]
[1719931448475,3.19200049,3409.5,3408.5,0.67178867]
[1719931448666,0.50805672,3409.4,3408.5,0.67178867]
[1719931448824,1.05806061,3409.3,3408.5,0.67178867]
[1719931449028,0.55,3409.5,3408.5,0.67178867]
[1719931449276,1.49862316,3409.8,3408.7,0.67178867]
[1719931449277,0.50805314,3409.4,3408.7,0.67178867]
[1719931449428,4.43100316,3410.2,3409.0,0.67178867]
[1719931449632,2.64159177,3410.1,3409.3,0.67178867]
[1719931449855,0.50798876,3410.0,3409.3,0.67178867]
[1719931450066,1.49862316,3410.4,3409.3,0.67178867]
[1719931450238,2.93213,3410.5,3409.3,0.67178867]
[1719931450239,0.50795328,3410.3,3409.3,0.67178867]
[1719931450438,0.50795328,3410.2,3409.6,0.67178867]
[1719931450755,1.49862316,3410.5,3409.4,0.67178867]
[1719931450953,2.6413419,3410.4,3409.3,0.67178867]
[1719931451259,1.49862316,3410.5,3409.1,2.93329]
[1719931451260,0.50795036,3410.3,3409.5,0.67178867]
[1719931451489,0.50795036,3410.2,3410.1,0.67178867]
[1719931451666,2.09807242,3411.2,3409.9,0.67178867]
[1719931451667,2.93159,3411.2,3409.9,0.67178867]
[1719931451831,4.14035885,3411.1,3409.9,1.75317654]
[1719931452036,0.50786859,3411.0,3409.9,0.67178867]
[1719931452338,0.50786859,3410.9,3409.9,0.67178867]
[1719931452560,0.50786859,3410.8,3409.9,0.67178867]
[1719931452757,1.49944217,3411.0,3409.9,0.67178867]
[1719931452960,0.50785957,3410.9,3409.9,0.67178867]
[1719931453158,0.50785957,3410.8,3409.9,0.67178867]
[1719931453335,2.93218,3410.5,3409.4,0.67178867]
[1719931453654,2.93218,3410.5,3409.3,0.67178867]
[1719931453655,0.50785957,3410.4,3409.3,0.67178867]
[1719931453852,2.9323,3410.3,3409.1,0.67178867]
[1719931454132,2.00730174,3410.2,3409.1,0.67178867]
[1719931454338,1.05785957,3410.1,3409.1,0.67178867]
[1719931454567,1.05785957,3410.1,3409.0,0.67178867]
[1719931454568,3.44047957,3410.0,3409.0,0.67178867]
[1719931454863,4.98194217,3410.1,3408.5,0.67178867]
[1719931454864,2.93283,3409.7,3408.5,0.67178867]
[1719931455067,2.93283,3409.7,3408.4,6.758]
[1719931455068,3.44096192,3409.6,3408.4,7.42978867]
[1719931455267,2.00804006,3409.5,3408.4,7.42978867]
[1719931455474,2.00804006,3409.4,3408.6,0.67178867]
[1719931455658,0.50805258,3409.3,3408.6,0.67178867]
[1719931455971,4.43296748,3409.5,3408.1,0.67178867]
[1719931455972,1.49998748,3409.5,3408.1,0.67178867]
[1719931456155,2.93283,3409.7,3408.1,0.67178867]
[1719931456156,2.93326,3409.2,3408.1,0.67178867]
[1719931456359,3.095,3409.3,3406.8,3.382]
[1719931456544,0.55,3409.4,3407.3,0.67178867]
[1719931456545,2.93394,3408.4,3407.3,0.67178867]
[1719931456938,0.55,3408.3,3407.3,0.67178867]
[1719931457252,1.49998748,3408.6,3407.6,0.67178867]
[1719931457459,1.05821105,3408.5,3407.6,0.67178867]
[1719931457765,0.50820769,3408.4,3407.6,0.67178867]
[1719931457931,0.55,3408.5,3407.6,0.67178867]
[1719931458131,3.48367,3408.7,3407.6,0.67178867]
[1719931458333,0.50818808,3408.6,3408.0,0.67178867]
[1719931458532,1.50018185,3408.9,3408.0,0.67178867]
[1719931458776,1.05816463,3408.8,3408.0,0.67178867]
[1719931458950,0.50816463,3408.7,3408.0,0.67178867]
[1719931459144,0.55,3408.8,3408.0,0.67178867]
[1719931459371,2.93398,3408.4,3407.2,0.67178867]
[1719931459685,0.50814416,3408.7,3407.4,0.67178867]
[1719931459686,1.05814416,3408.3,3407.4,0.67178867]
[1719931459846,1.50018185,3408.6,3407.8,0.67178867]
[1719931460167,2.35021823,3408.9,3407.8,0.67178867]
[1719931460168,0.508192,3408.5,3407.8,0.67178867]
[1719931460374,3.48349,3408.9,3407.8,0.67178867]
[1719931460375,0.50818814,3408.4,3407.8,0.67178867]
[1719931460560,1.50018185,3408.8,3407.8,0.67178867]
[1719931460762,1.50040856,3408.7,3407.8,0.67178867]
[1719931460990,3.48349,3408.9,3407.8,0.67178867]
[1719931460991,0.50818964,3408.6,3407.8,0.67178867]
[1719931461154,3.48349,3408.9,3407.8,0.67178867]
[1719931461155,0.50818964,3408.5,3407.8,0.67178867]
[1719931461351,2.05040856,3408.9,3407.8,0.67178867]
[1719931461576,0.50814654,3408.8,3407.8,0.67178867]
[1719931461799,0.50814654,3408.7,3408.2,0.67178867]
[1719931461968,1.50040856,3409.1,3408.2,0.67178867]
[1719931462167,1.05811764,3409.0,3408.2,0.67178867]
[1719931462370,0.50811764,3408.9,3408.2,0.67178867]
[1719931463454,0.50811764,3408.9,3408.0,0.67178867]
[1719931463658,0.50811764,3408.9,3407.8,0.67178867]
[1719931463659,3.48358,3408.8,3407.8,0.67178867]
[1719931463981,1.50085472,3408.6,3407.8,0.67178867]
[1719931464179,0.50820172,3408.7,3407.8,0.67178867]
[1719931464180,0.50820172,3408.5,3407.8,0.67178867]
[1719931464488,1.50085472,3408.7,3407.8,0.67178867]
[1719931464489,0.50820172,3408.4,3407.8,0.67178867]
[1719931464704,1.50085472,3408.7,3407.8,0.67178867]
[1719931464892,1.50085472,3408.7,3407.2,5.93493]
[1719931464893,2.93394,3408.4,3407.3,0.67178867]
[1719931465110,1.05819097,3408.3,3407.3,0.67178867]
[1719931465267,0.50819097,3408.2,3407.4,1.06390887]
[1719931465465,3.44216097,3408.4,3407.3,0.67178867]
[1719931465798,0.55,3408.6,3407.3,0.67178867]
[1719931465799,2.93412,3408.2,3407.3,0.67178867]
[1719931466022,0.50819097,3408.1,3407.3,0.67178867]
[1719931466326,0.50819097,3408.1,3406.6,0.67178867]
[1719931466327,2.93453,3407.7,3406.6,0.67178867]
[1719931466628,0.50819097,3407.6,3406.6,0.67178867]
[1719931466917,0.50836212,3407.5,3406.6,0.67178867]
[1719931467414,0.50836395,3407.4,3406.6,0.67178867]
[1719931467563,0.50836395,3407.3,3406.6,0.67178867]
[1719931467763,0.55,3407.6,3406.6,0.67178867]
[1719931468061,0.50835753,3407.5,3406.6,0.67178867]
[1719931468264,0.50835753,3407.4,3406.6,0.67178867]
[1719931468510,0.55,3407.6,3406.6,0.67178867]
[1719931468664,0.50835932,3407.5,3406.6,1.48186754]
[1719931468866,0.55,3407.6,3406.6,1.48186754]
[1719931469169,10.0863,3408.3,3407.2,0.67178867]
[1719931469170,0.5083288,3407.5,3407.2,0.67178867]
[1719931469398,1.49885297,3408.3,3407.2,0.67178867]
[1719931469399,2.93392,3408.4,3407.2,0.67178867]
[1719931469576,3.50826239,3408.3,3407.2,0.67178867]
[1719931469881,5.93404,3408.3,3407.2,0.67178867]
[1719931470064,0.50825205,3408.2,3407.2,0.67178867]
[1719931470285,0.50825994,3408.1,3407.2,0.67178867]
[1719931470485,5.93404,3408.3,3407.2,0.67178867]
[1719931470690,0.50827189,3408.2,3407.2,0.67178867]
[1719931470889,0.50827578,3408.1,3407.2,0.67178867]
[1719931471402,0.50827578,3408.1,3407.1,0.67178867]
[1719931471602,0.50827578,3408.0,3407.3,0.67178867]
[1719931471765,5.93404,3408.3,3407.0,0.67178867]
[1719931471766,0.50827578,3408.2,3407.0,0.67178867]
[1719931471970,0.55,3408.1,3407.3,0.67178867]
[1719931472221,0.55,3408.1,3406.9,0.38100789]
[1719931472222,0.50827578,3408.0,3407.0,0.67178867]
[1719931472380,0.50827578,3408.0,3407.1,0.67178867]
[1719931472571,0.50827578,3408.0,3407.3,0.67178867]
[1719931472768,0.50827578,3408.0,3407.2,0.67178867]
[1719931473103,0.55,3407.9,3407.1,0.67178867]
[1719931473311,0.50827578,3407.8,3407.1,0.67178867]
[1719931473609,0.55,3407.9,3407.1,0.67178867]
[1719931473783,0.50831848,3407.7,3407.1,0.67178867]
[1719931473983,3.48419,3408.1,3407.1,0.67178867]
[1719931474302,2.26434418,3408.0,3407.1,0.67178867]
[1719931474474,1.05830584,3407.9,3407.1,0.67178867]
[1719931474670,0.50830584,3407.8,3407.1,0.67178867]
[1719931474907,3.48419,3408.1,3407.1,0.67178867]
[1719931475206,2.93498,3407.2,3406.2,0.95591836]
[1719931475380,7.97544886,3407.9,3406.2,0.67178867]
[1719931475381,3.44337505,3407.1,3406.2,0.67178867]
[1719931475585,3.44337505,3407.1,3405.9,6.8853]
[1719931475586,2.93522,3406.9,3405.9,0.67178867]
[1719931475904,1.05830505,3406.8,3405.9,0.67178867]
[1719931476124,0.50830505,3406.7,3406.2,0.67178867]
[1719931476321,0.50830505,3406.9,3406.2,0.67178867]
[1719931476496,0.50830505,3407.0,3406.2,0.67178867]
[1719931476697,2.93496,3407.2,3406.2,0.67178867]
[1719931476885,1.05843433,3407.1,3406.2,0.67178867]
[1719931477089,0.50843433,3407.0,3406.2,0.67178867]
[1719931477509,0.55,3407.1,3406.2,0.67178867]
[1719931477710,0.50845178,3407.0,3406.2,0.67178867]
[1719931477896,0.50846369,3406.9,3406.2,0.67178867]
[1719931478098,0.50846369,3406.8,3406.2,0.67178867]
[1719931478301,2.93513,3407.0,3406.1,0.67178867]
[1719931478830,0.50846189,3406.9,3405.8,0.67178867]
[1719931478999,2.93544,3406.7,3405.8,0.67178867]
[1719931479196,0.55,3406.6,3405.8,0.67178867]
[1719931479429,0.55,3406.6,3405.8,1.1859322]
[1719931480030,3.48531,3406.8,3405.8,1.1859322]
[1719931480418,2.93502,3407.2,3406.3,0.67178867]
[1719931480732,3.0,3407.4,3406.6,0.67178867]
[1719931480899,0.50841642,3407.3,3406.8,0.67178867]
[1719931481097,2.93445,3407.8,3406.8,0.67178867]
[1719931481390,3.50837695,3407.7,3406.8,0.67178867]
[1719931481605,0.50837695,3407.6,3406.8,0.67178867]
[1719931481834,5.93445,3407.8,3406.8,0.67178867]
[1719931482002,0.50835335,3407.7,3406.8,0.67178867]
[1719931482215,5.93445,3407.8,3406.8,0.67178867]
[1719931482216,0.5083467,3407.6,3406.8,0.67178867]
[1719931482411,5.93445,3407.8,3406.8,0.67178867]
[1719931482726,11.0706,3413.4,3406.4,6.9245]
[1719931482727,0.50833961,3407.7,3407.2,0.67178867]
[1719931482903,5.9341,3408.2,3407.2,0.67178867]
[1719931483105,0.50830617,3408.1,3407.2,0.67178867]
[1719931483309,1.49855791,3408.5,3407.2,0.67178867]
[1719931483310,0.50830617,3408.0,3407.2,0.67178867]
[1719931483528,0.50830617,3407.9,3407.2,0.67178867]
[1719931484042,0.50830617,3407.8,3407.2,0.67178867]
[1719931484247,2.93386,3408.5,3407.5,0.67178867]
[1719931484451,3.44219888,3408.4,3407.5,0.67178867]
[1719931484743,0.50826888,3408.3,3407.5,0.67178867]
[1719931485418,3.50826888,3408.3,3407.5,0.67178867]